Workbook

Sheet GC
A1: GC
C9: SumProduct Pty Ltd
C10: Simulation Example
C11: Go to Table of Contents
C19: Primary Developer: Liam Bastick
C21: General Cover Notes:
C22: Simple illustration of how to construct simulations analysis using the NORM.INV function.
C24: Any queries, please e-mail: | G24: liam.bastick@sumproduct.com
C25: Website: | G25: www.sumproduct.com
C26: For past articles visit: | G26: www.sumproduct.com

Sheet Contents
A1: C | B1: Table of Contents
B2: =Model_Name -> Simulation Example
B3: Go to Cover Sheet
A6: é | B6: Section & Sheet Titles | Q6: Page
B8: 1 | D8: =Examples_SC!C9 -> Examples | Q8: 3
F9: a. | H9: ='Normal Distributions'!B1 -> Normal Distributions | Q9: 4
F10: b. | H10: ='Simulation Example'!B1 -> Simulation Example | Q10: 5
B11: 2 | D11: =Required_List_SC!C9 -> Required List | Q11: 6
F12: a. | H12: =Lookups!B1 -> Lookups | Q12: 7
B14: Total Pages: | Q14: 7

Sheet Examples_SC
A1: SC
C9: Examples
C10: Section 1.
C11: =Model_Name -> Simulation Example
C12: Go to Table of Contents
C13: ç | D13: è
C17: Section Cover Notes:
C18: Construction of simple exampls using the NORM.INV function.

Sheet Normal Distributions
B1: Normal Distributions
B2: =Model_Name -> Simulation Example
B3: Go to Table of Contents
A4: é | B4: ç | C4: è
B7: =B1 -> Normal Distributions
C9: Assumptions
F11: Mean | I11: 0
F12: Standard Deviation | I12: 1
C15: Calculations
F17: Value | G17: Cum Probability | I17: Incorrect Probability | J17: Correct Probability | L17: Value | M17: NORMINV
F18: =-3*I12 -> -3 | G18: =_xlfn.NORM.DIST($F18,Mean,Standard_Deviation,TRUE) -> 0.001349898032 | I18: =_xlfn.NORM.DIST($F18,Mean,Standard_Deviation,FALSE) -> 0.004431848412 | L18: =G18 -> 0.001349898032 | M18: =_xlfn.NORM.INV($L18,Mean,Standard_Deviation) -> -3
F19: =ROUND(F18+(0.1*$I$12),1) -> -2.9 | G19: 0.0018658133 | I19: 0.00595253242 | J19: =G19-G18 -> 0.0005159152688 | L19: =G19 -> 0.0018658133 | M19: -2.9
F20: =ROUND(F19+(0.1*$I$12),1) -> -2.8 | G20: 0.00255513033 | I20: 0.007915451583 | J20: =G20-G19 -> 0.00068931703 | L20: 0.00255513033 | M20: -2.8
F21: -2.7 | G21: 0.003466973803 | I21: 0.01042093481 | J21: 0.0009118434726 | L21: 0.003466973803 | M21: -2.7
F22: -2.6 | G22: 0.004661188024 | I22: 0.01358296923 | J22: 0.001194214221 | L22: 0.004661188024 | M22: -2.6
F23: -2.5 | G23: 0.006209665326 | I23: 0.01752830049 | J23: 0.001548477302 | L23: 0.006209665326 | M23: -2.5
F24: -2.4 | G24: 0.008197535925 | I24: 0.02239453029 | J24: 0.001987870599 | L24: 0.008197535925 | M24: -2.4
F25: -2.3 | G25: 0.01072411002 | I25: 0.02832703774 | J25: 0.002526574097 | L25: 0.01072411002 | M25: -2.3
F26: -2.2 | G26: 0.01390344751 | I26: 0.03547459285 | J26: 0.003179337492 | L26: 0.01390344751 | M26: -2.2
F27: -2.1 | G27: 0.01786442056 | I27: 0.04398359598 | J27: 0.003960973049 | L27: 0.01786442056 | M27: -2.1
F28: -2 | G28: 0.02275013195 | I28: 0.05399096651 | J28: 0.004885711385 | L28: 0.02275013195 | M28: -2
F29: -1.9 | G29: 0.02871655982 | I29: 0.06561581477 | J29: 0.005966427868 | L29: 0.02871655982 | M29: -1.9
F30: -1.8 | G30: 0.03593031911 | I30: 0.0789501583 | J30: 0.007213759297 | L30: 0.03593031911 | M30: -1.8
F31: -1.7 | G31: 0.04456546276 | I31: 0.09404907738 | J31: 0.008635143646 | L31: 0.04456546276 | M31: -1.7
F32: -1.6 | G32: 0.0547992917 | I32: 0.1109208347 | J32: 0.01023382894 | L32: 0.0547992917 | M32: -1.6
F33: -1.5 | G33: 0.06680720127 | I33: 0.1295175957 | J33: 0.01200790957 | L33: 0.06680720127 | M33: -1.5
F34: -1.4 | G34: 0.08075665923 | I34: 0.1497274656 | J34: 0.01394945796 | L34: 0.08075665923 | M34: -1.4
F35: -1.3 | G35: 0.09680048459 | I35: 0.171368592 | J35: 0.01604382535 | L35: 0.09680048459 | M35: -1.3
F36: -1.2 | G36: 0.1150696702 | I36: 0.194186055 | J36: 0.01826918564 | L36: 0.1150696702 | M36: -1.2
F37: -1.1 | G37: 0.1356660609 | I37: 0.217852177 | J37: 0.02059639072 | L37: 0.1356660609 | M37: -1.1
F38: -1 | G38: 0.1586552539 | I38: 0.2419707245 | J38: 0.02298919299 | L38: 0.1586552539 | M38: -1
F39: -0.9 | G39: 0.1840601253 | I39: 0.2660852499 | J39: 0.02540487142 | L39: 0.1840601253 | M39: -0.9
F40: -0.8 | G40: 0.2118553986 | I40: 0.2896915528 | J40: 0.02779527324 | L40: 0.2118553986 | M40: -0.8
F41: -0.7 | G41: 0.2419636522 | I41: 0.3122539334 | J41: 0.03010825364 | L41: 0.2419636522 | M41: -0.7
F42: -0.6 | G42: 0.2742531178 | I42: 0.3332246029 | J42: 0.03228946553 | L42: 0.2742531178 | M42: -0.6
F43: -0.5 | G43: 0.3085375387 | I43: 0.3520653268 | J43: 0.03428442098 | L43: 0.3085375387 | M43: -0.5
F44: -0.4 | G44: 0.3445782584 | I44: 0.3682701403 | J44: 0.03604071966 | L44: 0.3445782584 | M44: -0.4
F45: -0.3 | G45: 0.3820885778 | I45: 0.3813878155 | J45: 0.03751031942 | L45: 0.3820885778 | M45: -0.3
F46: -0.2 | G46: 0.4207402906 | I46: 0.391042694 | J46: 0.03865171275 | L46: 0.4207402906 | M46: -0.2
F47: -0.1 | G47: 0.4601721627 | I47: 0.3969525475 | J47: 0.03943187216 | L47: 0.4601721627 | M47: -0.1
F48: 0 | G48: 0.5 | I48: 0.3989422804 | J48: 0.03982783728 | L48: 0.5 | M48: 0
F49: 0.1 | G49: 0.5398278373 | I49: 0.3969525475 | J49: 0.03982783728 | L49: 0.5398278373 | M49: 0.1
F50: 0.2 | G50: =_xlfn.NORM.DIST($F50,Mean,Standard_Deviation,TRUE) -> 0.5792597094 | I50: =_xlfn.NORM.DIST($F50,Mean,Standard_Deviation,FALSE) -> 0.391042694 | J50: 0.03943187216 | L50: 0.5792597094 | M50: =_xlfn.NORM.INV($L50,Mean,Standard_Deviation) -> 0.2
F51: 0.3 | G51: 0.6179114222 | I51: 0.3813878155 | J51: 0.03865171275 | L51: 0.6179114222 | M51: 0.3
F52: 0.4 | G52: 0.6554217416 | I52: 0.3682701403 | J52: 0.03751031942 | L52: 0.6554217416 | M52: 0.4
F53: 0.5 | G53: 0.6914624613 | I53: 0.3520653268 | J53: 0.03604071966 | L53: 0.6914624613 | M53: 0.5
F54: 0.6 | G54: 0.7257468822 | I54: 0.3332246029 | J54: 0.03428442098 | L54: 0.7257468822 | M54: 0.6
F55: 0.7 | G55: 0.7580363478 | I55: 0.3122539334 | J55: 0.03228946553 | L55: 0.7580363478 | M55: 0.7
F56: 0.8 | G56: 0.7881446014 | I56: 0.2896915528 | J56: 0.03010825364 | L56: 0.7881446014 | M56: 0.8
F57: 0.9 | G57: 0.8159398747 | I57: 0.2660852499 | J57: 0.02779527324 | L57: 0.8159398747 | M57: 0.9
F58: 1 | G58: 0.8413447461 | I58: 0.2419707245 | J58: 0.02540487142 | L58: 0.8413447461 | M58: 1
F59: 1.1 | G59: 0.8643339391 | I59: 0.217852177 | J59: 0.02298919299 | L59: 0.8643339391 | M59: 1.1
F60: 1.2 | G60: 0.8849303298 | I60: 0.194186055 | J60: 0.02059639072 | L60: 0.8849303298 | M60: 1.2
F61: 1.3 | G61: 0.9031995154 | I61: 0.171368592 | J61: 0.01826918564 | L61: 0.9031995154 | M61: 1.3
F62: 1.4 | G62: 0.9192433408 | I62: 0.1497274656 | J62: 0.01604382535 | L62: 0.9192433408 | M62: 1.4
F63: 1.5 | G63: 0.9331927987 | I63: 0.1295175957 | J63: 0.01394945796 | L63: 0.9331927987 | M63: 1.5
F64: 1.6 | G64: 0.9452007083 | I64: 0.1109208347 | J64: 0.01200790957 | L64: 0.9452007083 | M64: 1.6
F65: 1.7 | G65: 0.9554345372 | I65: 0.09404907738 | J65: 0.01023382894 | L65: 0.9554345372 | M65: 1.7
F66: 1.8 | G66: 0.9640696809 | I66: 0.0789501583 | J66: 0.008635143646 | L66: 0.9640696809 | M66: 1.8
F67: 1.9 | G67: 0.9712834402 | I67: 0.06561581477 | J67: 0.007213759297 | L67: 0.9712834402 | M67: 1.9
F68: 2 | G68: 0.9772498681 | I68: 0.05399096651 | J68: 0.005966427868 | L68: 0.9772498681 | M68: 2
F69: 2.1 | G69: 0.9821355794 | I69: 0.04398359598 | J69: 0.004885711385 | L69: 0.9821355794 | M69: 2.1
F70: 2.2 | G70: 0.9860965525 | I70: 0.03547459285 | J70: 0.003960973049 | L70: 0.9860965525 | M70: 2.2
F71: 2.3 | G71: 0.98927589 | I71: 0.02832703774 | J71: 0.003179337492 | L71: 0.98927589 | M71: 2.3
F72: 2.4 | G72: 0.9918024641 | I72: 0.02239453029 | J72: 0.002526574097 | L72: 0.9918024641 | M72: 2.4
F73: 2.5 | G73: 0.9937903347 | I73: 0.01752830049 | J73: 0.001987870599 | L73: 0.9937903347 | M73: 2.5
F74: 2.6 | G74: 0.995338812 | I74: 0.01358296923 | J74: 0.001548477302 | L74: 0.995338812 | M74: 2.6
F75: 2.7 | G75: 0.9965330262 | I75: 0.01042093481 | J75: 0.001194214221 | L75: 0.9965330262 | M75: 2.7
F76: 2.8 | G76: 0.9974448697 | I76: 0.007915451583 | J76: 0.0009118434726 | L76: 0.9974448697 | M76: 2.8
F77: 2.9 | G77: 0.9981341867 | I77: 0.00595253242 | J77: 0.00068931703 | L77: 0.9981341867 | M77: 2.9
F78: 3 | G78: 0.998650102 | I78: 0.004431848412 | J78: 0.0005159152688 | L78: 0.998650102 | M78: 3
F80: ANALYSIS | G80: =G78-G18 -> 0.9973002039 | I80: =SUM(I18:I78) -> 9.977212517 | J80: =SUM(J18:J78) -> 0.9973002039

Sheet Simulation Example
B1: Simulation Example
B2: =Model_Name -> Simulation Example
B3: Go to Table of Contents
A4: é | B4: ç | C4: è
B7: =B1 -> Simulation Example
C9: Assumptions
H10: Mean | I10: Standard Deviation | K10: Value Used
D11: Sales (US$) | H11: 1000 | I11: 175 | K11: =_xlfn.NORM.INV(RAND(),Mean_Sales,SD_Sales) -> 1136.545671
D12: Foreign Exchange (US$:A$) | H12: 0.92 | I12: 0.05 | K12: =_xlfn.NORM.INV(RAND(),Mean_FX,SD_FX) -> 0.8872230494
D13: Gross Margin (%) | H13: 0.4 | I13: 0.02 | K13: =_xlfn.NORM.INV(RAND(),Mean_GM,SD_GM) -> 0.4295459904
C16: Calculations
F18: =D11 -> Sales (US$) | H18: =K11 -> 1136.545671
F19: =D12 -> Foreign Exchange (US$:A$) | H19: =K12 -> 0.8872230494
F20: Sales (A$) | H20: =H18/H19 -> 1281.01459
F21: =D13 -> Gross Margin (%) | H21: =K13 -> 0.4295459904
F23: Gross Profit (A$) | H23: =H20*H21 -> 550.2546806
C26: Data Table
F28: Data Table Switch | G28: TRUE
F30: =IF(Data_Switch,H18,) -> 1136.545671 | G30: =IF(Data_Switch,H19,) -> 0.8872230494 | H30: =IF(Data_Switch,H21,) -> 0.4295459904 | I30: =IF(Data_Switch,H23,) -> 550.2546806
E31: 1 | F31: 593.5893229 | G31: 0.9762969592 | H31: 0.4134719446 | I31: 251.3912691
E32: 2 | F32: 1288.43591 | G32: 0.8849830087 | H32: 0.4096461219 | I32: 596.3987656
E33: 3 | F33: 1179.662023 | G33: 0.887384345 | H33: 0.3902158919 | I33: 518.7412545
E34: 4 | F34: 908.8293378 | G34: 0.9442231962 | H34: 0.4277197532 | I34: 411.6868359
E35: 5 | F35: 937.9291253 | G35: 0.8973980463 | H35: 0.429461009 | I35: 448.8576616
E36: 6 | F36: 1073.195908 | G36: 0.9294297894 | H36: 0.4288468977 | I36: 495.1818212
E37: 7 | F37: 955.0797615 | G37: 0.9310818526 | H37: 0.3866232601 | I37: 396.5881732
E38: 8 | F38: 1123.520768 | G38: 0.9719750691 | H38: 0.3599359514 | I38: 416.0554417
E39: 9 | F39: 1163.101825 | G39: 0.8998687507 | H39: 0.4347004549 | I39: 561.8607068
E40: 10 | F40: 1248.317496 | G40: 0.9663839278 | H40: 0.4178204398 | I40: 539.7156869
E41: 11 | F41: 1090.112148 | G41: 0.9282797502 | H41: 0.4015756261 | I41: 471.584636
E42: 12 | F42: 1009.190943 | G42: 0.9523462469 | H42: 0.4447131484 | I42: 471.2576789
E43: 13 | F43: 1275.075945 | G43: 0.9660613191 | H43: 0.3819468009 | I43: 504.1203582
E44: 14 | F44: 1036.142877 | G44: 0.8841356195 | H44: 0.4018541765 | I44: 470.9439746
E45: 15 | F45: 921.4804551 | G45: 0.9349570738 | H45: 0.3712470788 | I45: 365.8958648
E46: 16 | F46: 1204.122739 | G46: 0.9786270559 | H46: 0.3824372743 | I46: 470.5586417
E47: 17 | F47: 911.3188983 | G47: 0.8982885203 | H47: 0.3715703581 | I47: 376.9602769
E48: 18 | F48: 990.012484 | G48: 0.935614472 | H48: 0.382791915 | I48: 405.0480043
E49: 19 | F49: 1065.825045 | G49: 1.012079052 | H49: 0.3826546647 | I49: 402.9753651
E50: 20 | F50: 1016.803342 | G50: 1.02334398 | H50: 0.4094972875 | I50: 406.8800115
E51: 21 | F51: 1144.928247 | G51: 0.9697346684 | H51: 0.4094312836 | I51: 483.3996938
E52: 22 | F52: 1156.686958 | G52: 0.897955021 | H52: 0.3852429048 | I52: 496.2447263
E53: 23 | F53: 1036.932306 | G53: 0.9620938261 | H53: 0.3510366095 | I53: 378.3427263
E54: 24 | F54: 1349.22286 | G54: 0.9902746461 | H54: 0.4073937321 | I54: 555.0631216
E55: 25 | F55: 801.379794 | G55: 0.9437586159 | H55: 0.4115882545 | I55: 349.4945689
E56: 26 | F56: 1046.928993 | G56: 0.9502967212 | H56: 0.4021378651 | I56: 443.0298252
E57: 27 | F57: 1004.879766 | G57: 0.8557575413 | H57: 0.4254600679 | I57: 499.5997032
E58: 28 | F58: 949.7226884 | G58: 0.9209251858 | H58: 0.4202550573 | I58: 433.3965114
E59: 29 | F59: 1039.540878 | G59: 0.8502286323 | H59: 0.3971618857 | I59: 485.5941092
E60: 30 | F60: 919.9984712 | G60: 0.9454057216 | H60: 0.4099979988 | I60: 398.9795317
E61: 31 | F61: 960.5020372 | G61: 0.8878025351 | H61: 0.4081141296 | I61: 441.5333787
E62: 32 | F62: 1038.235723 | G62: 0.9182894604 | H62: 0.4235334139 | I62: 478.8550227
E63: 33 | F63: 791.0897182 | G63: 1.024990749 | H63: 0.4218822979 | I63: 325.6095222
E64: 34 | F64: 895.6021493 | G64: 0.9009458607 | H64: 0.3941744203 | I64: 391.8364836
E65: 35 | F65: 839.1449827 | G65: 1.003863388 | H65: 0.4005658868 | I65: 334.8392402
E66: 36 | F66: 944.1588216 | G66: 0.9019478523 | H66: 0.4070678972 | I66: 426.118589
E67: 37 | F67: 905.3540092 | G67: 0.8185328119 | H67: 0.4295661847 | I67: 475.1299665
E68: 38 | F68: 778.6317441 | G68: 0.892007993 | H68: 0.4031811774 | I68: 351.9359308
E69: 39 | F69: 961.7944536 | G69: 0.9027527836 | H69: 0.436870315 | I69: 465.4424263
E70: 40 | F70: 1050.988157 | G70: 1.004787351 | H70: 0.3688913198 | I70: 385.8531937
E71: 41 | F71: 993.2565841 | G71: 0.9097896513 | H71: 0.3841110727 | I71: 419.3506174
E72: 42 | F72: 841.9814911 | G72: 0.976760128 | H72: 0.3819104595 | I72: 329.212392
E73: 43 | F73: 827.9119476 | G73: 0.9233081716 | H73: 0.4420374954 | I73: 396.3661701
E74: 44 | F74: 1214.572931 | G74: 0.9703037882 | H74: 0.3999625652 | I74: 500.6511477
E75: 45 | F75: 873.4882165 | G75: 0.9759149608 | H75: 0.40502902 | I75: 362.5193695
E76: 46 | F76: 969.2939676 | G76: 0.9149344497 | H76: 0.4239913815 | I76: 449.1822213
E77: 47 | F77: 993.9335965 | G77: 0.91618968 | H77: 0.3783116837 | I77: 410.4135864
E78: 48 | F78: 1118.967474 | G78: 0.9813077416 | H78: 0.3742414286 | I78: 426.7407341
E79: 49 | F79: 1450.633788 | G79: 0.9841945654 | H79: 0.3197210804 | I79: 471.2464568
E80: 50 | F80: 864.9831644 | G80: 0.8232730858 | H80: 0.3989923751 | I80: 419.2068138
E81: 51 | F81: 722.6856682 | G81: 0.8959244933 | H81: 0.407359068 | I81: 328.5908159
E82: 52 | F82: 994.1799238 | G82: 0.8971651884 | H82: 0.4018935023 | I82: 445.3521566
E83: 53 | F83: 814.772897 | G83: 0.9442412974 | H83: 0.3740445036 | I83: 322.7578847
E84: 54 | F84: 893.0063362 | G84: 0.8705477122 | H84: 0.4071829341 | I84: 417.687549
E85: 55 | F85: 881.1736001 | G85: 0.9381591836 | H85: 0.3840163578 | I85: 360.6904696
E86: 56 | F86: 938.357406 | G86: 0.8584240875 | H86: 0.4174939758 | I86: 456.3694914
E87: 57 | F87: 620.7711895 | G87: 0.8714208845 | H87: 0.41105075 | I87: 292.818852
E88: 58 | F88: 1137.219612 | G88: 0.8786040777 | H88: 0.3694737234 | I88: 478.2276511
E89: 59 | F89: 938.002037 | G89: 0.8836400208 | H89: 0.4210931057 | I89: 446.9989832
E90: 60 | F90: 933.6403759 | G90: 0.9243154611 | H90: 0.4026398968 | I90: 406.7019112
E91: 61 | F91: 1117.434622 | G91: 0.9655637736 | H91: 0.3929215597 | I91: 454.7231022
E92: 62 | F92: 928.4782792 | G92: 0.853694689 | H92: 0.3839658348 | I92: 417.6012129
E93: 63 | F93: 777.7931331 | G93: 0.965391816 | H93: 0.4479418363 | I93: 360.8960409
E94: 64 | F94: 833.0544742 | G94: 1.001426932 | H94: 0.3982611956 | I94: 331.3005276
E95: 65 | F95: 990.1606962 | G95: 0.9144710572 | H95: 0.3926381827 | I95: 425.1363597
E96: 66 | F96: 935.930385 | G96: 0.9907850955 | H96: 0.3757223829 | I96: 354.9205535
E97: 67 | F97: 921.47996 | G97: 0.8667845287 | H97: 0.3689761015 | I97: 392.2590587
E98: 68 | F98: 1432.720306 | G98: 0.8997040042 | H98: 0.4063507207 | I98: 647.0871821
E99: 69 | F99: 1080.914946 | G99: 0.9524400199 | H99: 0.4003281079 | I99: 454.3284892
E100: 70 | F100: 987.2495593 | G100: 0.9352151497 | H100: 0.3733352368 | I100: 394.1072256
E101: 71 | F101: 942.6888012 | G101: 0.8766927513 | H101: 0.3948784385 | I101: 424.6042656
E102: 72 | F102: 1062.142959 | G102: 0.9306743724 | H102: 0.4186286405 | I102: 477.7648082
E103: 73 | F103: 1124.648671 | G103: 0.9130819966 | H103: 0.3734597855 | I103: 459.9926983
E104: 74 | F104: 825.4952816 | G104: 0.838333784 | H104: 0.4124347995 | I104: 406.1186456
E105: 75 | F105: 1201.405049 | G105: 0.9001239862 | H105: 0.3944761176 | I105: 526.5114658
E106: 76 | F106: 1013.455778 | G106: 0.8216301347 | H106: 0.4064679762 | I106: 501.3658844
E107: 77 | F107: 1291.088384 | G107: 0.9149126593 | H107: 0.358315299 | I107: 505.6403095
E108: 78 | F108: 1164.298208 | G108: 0.9620367248 | H108: 0.4007622835 | I108: 485.0197464
E109: 79 | F109: 1102.7819 | G109: 0.8587472564 | H109: 0.3985474746 | I109: 511.804769
E110: 80 | F110: 1222.978963 | G110: 1.017301073 | H110: 0.3813929269 | I110: 458.5029333
E111: 81 | F111: 1036.396069 | G111: 0.8636477127 | H111: 0.4305254989 | I111: 516.6399772
E112: 82 | F112: 753.0879173 | G112: 0.944084898 | H112: 0.4063225492 | I112: 324.1197937
E113: 83 | F113: 1304.225919 | G113: 0.8321828487 | H113: 0.4009211756 | I113: 628.3376178
E114: 84 | F114: 941.2626796 | G114: 0.842137897 | H114: 0.4159334736 | I114: 464.8913881
E115: 85 | F115: 937.6312263 | G115: 0.9334953095 | H115: 0.4152140317 | I115: 417.0536667
E116: 86 | F116: 1120.009922 | G116: 0.8849610516 | H116: 0.3985682501 | I116: 504.4294253
E117: 87 | F117: 865.0625933 | G117: 0.8414715068 | H117: 0.3375331726 | I117: 346.9960887
E118: 88 | F118: 1113.56072 | G118: 0.9108247335 | H118: 0.4071667163 | I118: 497.7959479
E119: 89 | F119: 999.3574444 | G119: 0.9546830903 | H119: 0.4109974116 | I119: 430.2300178
E120: 90 | F120: 1050.671667 | G120: 0.9063535989 | H120: 0.4019479808 | I120: 465.9498847
E121: 91 | F121: 919.5194525 | G121: 0.868350248 | H121: 0.3843955027 | I121: 407.0467453
E122: 92 | F122: 1162.873123 | G122: 0.8531769337 | H122: 0.3868542812 | I122: 527.2791942
E123: 93 | F123: 941.8922036 | G123: 0.8200518009 | H123: 0.3918790905 | I123: 450.1031029
E124: 94 | F124: 929.4711284 | G124: 0.8805164236 | H124: 0.4061167356 | I124: 428.6958998
E125: 95 | F125: 1235.933382 | G125: 0.8126498535 | H125: 0.3732331413 | I125: 567.6384446
E126: 96 | F126: 870.4474528 | G126: 0.9368545024 | H126: 0.3955980726 | I126: 367.5568978
E127: 97 | F127: 1246.587184 | G127: 0.8876317853 | H127: 0.351205487 | I127: 493.2318402
E128: 98 | F128: 1020.509425 | G128: 1.002226485 | H128: 0.4029564653 | I128: 410.3073276
E129: 99 | F129: 1156.889918 | G129: 0.9679752682 | H129: 0.3983256868 | I129: 476.0648194
E130: 100 | F130: 921.866293 | G130: 0.9227841723 | H130: 0.3961174981 | I130: 395.7234861
E131: 101 | F131: 969.7208605 | G131: 0.855514672 | H131: 0.4291722012 | I131: 486.4641717
E132: 102 | F132: 904.8062114 | G132: 0.8895952308 | H132: 0.4137626162 | I132: 420.8374463
E133: 103 | F133: 866.6968618 | G133: 0.9128348853 | H133: 0.3954110889 | I133: 375.4255621
E134: 104 | F134: 1479.578767 | G134: 0.9670974828 | H134: 0.3825258516 | I134: 585.2327587
E135: 105 | F135: 1137.79895 | G135: 1.002738683 | H135: 0.397959953 | I135: 451.5617324
E136: 106 | F136: 934.9300051 | G136: 0.9460732121 | H136: 0.3984243782 | I136: 393.7315857
E137: 107 | F137: 776.3559453 | G137: 0.9458407155 | H137: 0.4120350464 | I137: 338.2026727
E138: 108 | F138: 978.8255466 | G138: 0.9388467316 | H138: 0.4105100625 | I138: 427.9907708
E139: 109 | F139: 825.3017908 | G139: 0.9130727321 | H139: 0.3998459976 | I139: 361.4100019
E140: 110 | F140: 892.8785874 | G140: 0.8952906365 | H140: 0.4029822042 | I140: 401.8965088
E141: 111 | F141: 1190.377086 | G141: 0.9228512212 | H141: 0.4227739303 | I141: 545.3321052
E142: 112 | F142: 1001.769987 | G142: 0.9602271177 | H142: 0.4051937639 | I142: 422.7238994
E143: 113 | F143: 925.1289047 | G143: 0.9702677726 | H143: 0.4096457662 | I143: 390.588196
E144: 114 | F144: 901.7343584 | G144: 0.8873241148 | H144: 0.3893305154 | I144: 395.6532868
E145: 115 | F145: 1226.807746 | G145: 0.852302217 | H145: 0.3771793534 | I145: 542.9137026
E146: 116 | F146: 1141.881997 | G146: 0.8478414459 | H146: 0.4086776217 | I146: 550.4114255
E147: 117 | F147: 791.9770699 | G147: 0.8553190793 | H147: 0.3707174316 | I147: 343.2633649
E148: 118 | F148: 860.0190111 | G148: 0.8516665416 | H148: 0.4093365849 | I148: 413.3510332
E149: 119 | F149: 1261.279858 | G149: 0.9191543373 | H149: 0.4197357791 | I149: 575.9688686
E150: 120 | F150: 890.9290154 | G150: 0.9017319415 | H150: 0.4377874953 | I150: 432.542715
E151: 121 | F151: 1243.945634 | G151: 0.9675968334 | H151: 0.3887225107 | I151: 499.7429232
E152: 122 | F152: 521.9098277 | G152: 0.9205350992 | H152: 0.3895005182 | I152: 220.8325881
E153: 123 | F153: 1314.543133 | G153: 0.9415590222 | H153: 0.3556017346 | I153: 496.4678871
E154: 124 | F154: 941.1958259 | G154: 0.9574032183 | H154: 0.3854434163 | I154: 378.9184407
E155: 125 | F155: 767.1764038 | G155: 1.014903656 | H155: 0.416370743 | I155: 314.7390468
E156: 126 | F156: 1122.652292 | G156: 0.9278057182 | H156: 0.4201485855 | I156: 508.3831274
E157: 127 | F157: 1034.936224 | G157: 0.8648200651 | H157: 0.4135121574 | I157: 494.8528925
E158: 128 | F158: 1080.091031 | G158: 0.9345006926 | H158: 0.4029548341 | I158: 465.7330974
E159: 129 | F159: 804.4773026 | G159: 0.8920247354 | H159: 0.4110057861 | I159: 370.6677775
E160: 130 | F160: 1321.285349 | G160: 0.9348037495 | H160: 0.4035643555 | I160: 570.4124212
E161: 131 | F161: 926.7952431 | G161: 0.9828508117 | H161: 0.371893012 | I161: 350.6825963
E162: 132 | F162: 1076.51962 | G162: 0.8659016435 | H162: 0.4012955363 | I162: 498.9048371
E163: 133 | F163: 981.6194483 | G163: 0.8279397717 | H163: 0.4084449231 | I163: 484.2592346
E164: 134 | F164: 584.9096659 | G164: 0.9458218585 | H164: 0.3925615939 | I164: 242.7656632
E165: 135 | F165: 1140.238036 | G165: 0.9361704762 | H165: 0.414292174 | I165: 504.6000776
E166: 136 | F166: 715.4379683 | G166: 0.9080369795 | H166: 0.3999590879 | I166: 315.1258415
E167: 137 | F167: 1020.471975 | G167: 0.9531148102 | H167: 0.4000551474 | I167: 428.3272717
E168: 138 | F168: 1056.098274 | G168: 0.9439874998 | H168: 0.387600365 | I168: 433.6329415
E169: 139 | F169: 870.2653357 | G169: 0.9508445124 | H169: 0.4044321352 | I169: 370.158594
E170: 140 | F170: 984.4949413 | G170: 0.8811201021 | H170: 0.4361514717 | I170: 487.3216676
E171: 141 | F171: 1119.928736 | G171: 0.832369824 | H171: 0.4300587892 | I171: 578.6312552
E172: 142 | F172: 1070.606042 | G172: 0.9078278193 | H172: 0.3507931046 | I172: 413.6921222
E173: 143 | F173: 916.5350245 | G173: 0.9230666796 | H173: 0.3878754639 | I173: 385.1308423
E174: 144 | F174: 1172.935625 | G174: 0.853534815 | H174: 0.3867125804 | I174: 531.4240901
E175: 145 | F175: 923.3584764 | G175: 0.9267635053 | H175: 0.3969436724 | I175: 395.4852587
E176: 146 | F176: 1216.909738 | G176: 0.8701605722 | H176: 0.4236261752 | I176: 592.4364244
E177: 147 | F177: 864.5637322 | G177: 0.9677349719 | H177: 0.3836085584 | I177: 342.7116479
E178: 148 | F178: 939.7014519 | G178: 0.8379156577 | H178: 0.3804362301 | I178: 426.6497165
E179: 149 | F179: 855.8077011 | G179: 0.9306010974 | H179: 0.4200137315 | I179: 386.2567828
E180: 150 | F180: 970.8789086 | G180: 0.8249982259 | H180: 0.4135037072 | I180: 486.6216865
E181: 151 | F181: 800.0786819 | G181: 0.9459132791 | H181: 0.3956063887 | I181: 334.6144356
E182: 152 | F182: 1324.059246 | G182: 0.9755890159 | H182: 0.3973308994 | I182: 539.2533561
E183: 153 | F183: 1080.955956 | G183: 0.8939333884 | H183: 0.4253671988 | I183: 514.3595853
E184: 154 | F184: 1297.966017 | G184: 0.856161791 | H184: 0.3986953351 | I184: 604.4336498
E185: 155 | F185: 1117.601713 | G185: 0.9787833605 | H185: 0.4051758075 | I185: 462.6408609
E186: 156 | F186: 966.3323106 | G186: 0.8267212277 | H186: 0.4061914247 | I186: 474.786282
E187: 157 | F187: 1009.973478 | G187: 0.9651548875 | H187: 0.3721589109 | I187: 389.440736
E188: 158 | F188: 689.4960966 | G188: 0.9490200334 | H188: 0.4211840471 | I188: 306.0048747
E189: 159 | F189: 955.4494734 | G189: 0.9279005574 | H189: 0.3916551957 | I189: 403.2832478
E190: 160 | F190: 970.8182016 | G190: 0.8950183818 | H190: 0.4174244921 | I190: 452.7765048
E191: 161 | F191: 1033.502455 | G191: 0.8917241352 | H191: 0.4082902343 | I191: 473.2057179
E192: 162 | F192: 1232.489252 | G192: 0.9115635386 | H192: 0.4266202403 | I192: 576.8164683
E193: 163 | F193: 962.7374607 | G193: 0.8988901492 | H193: 0.4113880533 | I193: 440.6085551
E194: 164 | F194: 1049.325625 | G194: 0.8860406339 | H194: 0.4098598275 | I194: 485.391305
E195: 165 | F195: 1053.439668 | G195: 0.9622365319 | H195: 0.3825679377 | I195: 418.828664
E196: 166 | F196: 935.8366416 | G196: 0.8872653143 | H196: 0.4010920526 | I196: 423.0489273
E197: 167 | F197: 865.8851871 | G197: 0.8620076374 | H197: 0.416706289 | I197: 418.5807496
E198: 168 | F198: 720.9900608 | G198: 0.8664467788 | H198: 0.3918580326 | I198: 326.0739766
E199: 169 | F199: 1021.874046 | G199: 0.9264241022 | H199: 0.4211815859 | I199: 464.5761377
E200: 170 | F200: 791.3957627 | G200: 0.9390587804 | H200: 0.4140519252 | I200: 348.9440128
E201: 171 | F201: 1041.62168 | G201: 0.9303785801 | H201: 0.3636849638 | I201: 407.1698887
E202: 172 | F202: 857.0587514 | G202: 0.852692974 | H202: 0.4285038269 | I202: 430.6977612
E203: 173 | F203: 947.558588 | G203: 0.8807927476 | H203: 0.4164400066 | I203: 448.0069866
E204: 174 | F204: 873.451472 | G204: 0.8246329777 | H204: 0.4231234316 | I204: 448.1724526
E205: 175 | F205: 1055.505682 | G205: 0.8910282233 | H205: 0.4619717452 | I205: 547.2484363
E206: 176 | F206: 938.0406962 | G206: 0.9520500119 | H206: 0.4387685865 | I206: 432.312153
E207: 177 | F207: 966.0244676 | G207: 0.9920377376 | H207: 0.3681620263 | I207: 358.5080607
E208: 178 | F208: 979.4414011 | G208: 0.9165763295 | H208: 0.4266099745 | I208: 455.8698034
E209: 179 | F209: 825.7343691 | G209: 0.9253344677 | H209: 0.4012547635 | I209: 358.0649598
E210: 180 | F210: 1076.276043 | G210: 0.8351079757 | H210: 0.41183809 | I210: 530.7714482
E211: 181 | F211: 840.1259652 | G211: 0.8780411156 | H211: 0.3747041624 | I211: 358.5238669
... 930 more rows

Sheet Required_List_SC
A1: SC
C9: Required List
C10: Section 2.
C11: =Model_Name -> Simulation Example
C12: Go to Table of Contents
C13: ç | D13: è
C17: Section Cover Notes:
C18: Look Up list for the simulations outputs.

Sheet Lookups
B1: Lookups
B2: =Model_Name -> Simulation Example
B3: Go to Table of Contents
A4: é | B4: ç
B7: Simulation Outputs
F9: List
F10: ='Simulation Example'!D11 -> Sales (US$) | H10: LU_Simulation_Outputs
F11: ='Simulation Example'!D12 -> Foreign Exchange (US$:A$)
F12: ='Simulation Example'!D13 -> Gross Margin (%)
F13: ='Simulation Example'!L1045 -> Gross Profit (A$)
